fUSD/lending_fUSD_20241029
["ID","MTS","AMOUNT","RATE_DAILY","PERIOD"]
[341005719,1730235038446,-303.6637,0.00037251,2]
[341005720,1730235038455,-254.1907863,0.00037292,2]
[341005721,1730235038465,-1700.0,0.000373,13]
[341005722,1730235038475,-3453.6499304,0.00037309,2]
[341005723,1730235038485,-322.0138449,0.00037309,2]
[341005724,1730235038494,-2024.27894152,0.00037315,2]
[341005725,1730235038504,-23335.49031029,0.00037316,2]
[341005726,1730235038513,-2000.0,0.00037316,2]
[341005727,1730235038523,-200.0,0.00037316,2]
[341005728,1730235038532,-200.0,0.00037316,2]
[341005729,1730235038542,-2000.0,0.00037316,2]
[341005730,1730235038552,-200.0,0.00037316,2]
[341005731,1730235038561,-6987.87426884,0.00037319,2]
[341005732,1730235038571,-152.5425,0.00037319,7]
[341005733,1730235038580,-150.0,0.00037324,2]
[341005734,1730235038589,-6915.0324223,0.0003733,2]
[341005735,1730235038598,-6987.87426884,0.00037331,2]
[341005736,1730235038608,-8363.22123728,0.00037334,2]
[341005737,1730235038619,-5127.45990977,0.00037335,2]
[341005738,1730235038802,-1279.92069973,0.00037335,2]
[341005739,1730235038818,-580.49365934,0.00037335,2]
[341005740,1730235038828,-11644.10841928,0.00037339,2]
[341005741,1730235038837,-11644.10841928,0.00037345,2]
[341005742,1730235038847,-47050.77235823,0.0003735,2]
[341005743,1730235038857,-47050.77235823,0.00037351,2]
[341005744,1730235038867,-8363.22123728,0.00037363,2]
[341005746,1730235038876,-184.45,0.00037364,2]
[341005747,1730235038886,-6915.0324223,0.00037373,2]
[341005748,1730235038895,-511.48764529,0.00037373,4]
[341005749,1730235038905,-10823.5474122,0.00037375,2]
[341005750,1730235038916,-13074.73515205,0.00037375,2]
[341005751,1730235038928,-23152.48979398,0.00037375,2]
[341005752,1730235038937,-254.1907863,0.00037379,2]
[341005753,1730235038946,-69864.65051572,0.00037389,2]
[341005754,1730235038956,-150.0,0.00037392,2]
[341005755,1730235038966,-151.0,0.000374,7]
[341005756,1730235038975,-151.636444,0.000374,7]
[341005757,1730235038984,-151.0,0.000374,7]
[341005758,1730235038993,-291.63092,0.000374,7]
[341005759,1730235039003,-152.347256,0.000374,7]
[341005760,1730235039012,-151.0,0.000374,7]
[341005762,1730235039022,-170.99633184,0.000374,2]
[341005764,1730235039031,-151.0,0.000374,7]
[341005766,1730235039041,-151.0,0.000374,7]
[341005768,1730235039051,-151.0,0.000374,7]
[341005770,1730235039060,-151.0,0.000374,7]
[341005772,1730235039070,-151.0,0.000374,7]
[341005773,1730235039079,-151.0,0.000374,7]
[341005776,1730235039088,-151.0,0.000374,7]
[341005777,1730235039098,-151.0,0.000374,7]
[341005779,1730235039106,-155.413208,0.000374,7]
[341005781,1730235039116,-151.0,0.000374,7]
[341005783,1730235039125,-151.0,0.000374,7]
[341005785,1730235039134,-151.0,0.000374,7]
[341005787,1730235039143,-154.84269,0.000374,7]
[341005789,1730235039152,-161.162561,0.000374,7]
[341005791,1730235039161,-151.0,0.000374,7]
[341005793,1730235039171,-151.0,0.000374,7]
[341005795,1730235039180,-151.0,0.000374,7]
[341005797,1730235039190,-151.0,0.000374,7]
[341005799,1730235039199,-162.794761,0.000374,7]
[341005801,1730235039208,-151.0,0.000374,7]
[341005803,1730235039218,-151.0,0.000374,7]
[341005805,1730235039227,-151.0,0.000374,7]
[341005807,1730235039237,-151.0,0.000374,7]
[341005809,1730235039246,-151.0,0.000374,7]
[341005811,1730235039259,-151.0,0.000374,7]
[341005813,1730235039269,-151.0,0.000374,7]
[341005815,1730235039279,-151.0,0.000374,7]
[341005817,1730235039288,-151.0,0.000374,7]
[341005819,1730235039297,-151.0,0.000374,7]
[341005821,1730235039306,-151.0,0.000374,7]
[341005822,1730235039315,-159.82656506,0.000374,10]
[341005824,1730235039324,-151.0,0.000374,7]
[341005826,1730235039333,-151.0,0.000374,7]
[341005828,1730235039342,-151.0,0.000374,7]
[341005830,1730235039352,-151.0,0.000374,7]
[341005832,1730235039361,-151.0,0.000374,7]
[341005834,1730235039370,-151.0,0.000374,7]
[341005836,1730235039379,-151.0,0.000374,7]
[341005838,1730235039389,-1186.186262,0.000374,7]
[341005840,1730235039398,-1186.186262,0.000374,7]
[341005842,1730235039407,-246.090973,0.000374,7]
[341005844,1730235039417,-151.0,0.000374,7]
[341005846,1730235039427,-151.0,0.000374,7]
[341005848,1730235039436,-151.0,0.000374,7]
[341005850,1730235039446,-2200.0,0.000374,13]
[341005852,1730235039456,-151.0,0.000374,7]
[341005854,1730235039468,-151.0,0.000374,7]
[341005856,1730235039478,-162.40053895,0.000374,2]
[341005858,1730235039488,-151.0,0.000374,7]
[341005870,1730235039603,-151.0,0.000374,7]
[341005873,1730235039613,-151.0,0.000374,7]
[341005875,1730235039623,-151.0,0.000374,7]
[341005877,1730235039632,-151.0,0.000374,7]
[341005879,1730235039642,-152.610046,0.000374,7]
[341005880,1730235039651,-217.9314,0.000374,2]
[341005882,1730235039661,-151.0,0.000374,7]
[341005884,1730235039670,-3025.6915,0.000374,120]
[341005886,1730235039680,-974.16982972,0.000374,12]
[341005888,1730235039689,-8363.22123728,0.000374,2]
[341005890,1730235039699,-150.0,0.00037426,2]
[341005892,1730235039708,-150.0,0.00037426,2]
[341005894,1730235039717,-150.0,0.00037461,2]
[341005896,1730235039727,-254.1907863,0.00037466,2]
[341005898,1730235039737,-500.0,0.00037472,2]
[341005900,1730235039746,-227.6740055,0.0003748,2]
[341005902,1730235039759,-165.33540281,0.0003749,2]
[341005904,1730235039768,-165.33540281,0.0003749,2]
[341005907,1730235039782,-5199.999999,0.00037499,120]
[341005909,1730235039791,-1000.0,0.00037499,2]
[341005911,1730235039802,-500.0,0.00037499,15]
[341005913,1730235039812,-500.0,0.00037499,15]
[341005915,1730235039822,-500.0,0.00037499,15]
[341005917,1730235039831,-500.0,0.00037499,15]
[341005919,1730235039841,-500.0,0.00037499,15]
[341005920,1730235039852,-500.0,0.00037499,15]
[341005922,1730235039861,-152.62428288,0.00037499,15]
[341005924,1730235039870,-500.0,0.00037499,15]
[341005926,1730235039880,-500.0,0.00037499,15]
[341005928,1730235039890,-500.0,0.00037499,15]
[341005930,1730235039900,-500.0,0.00037499,15]
[341005932,1730235039909,-500.0,0.00037499,15]
[341005934,1730235039919,-600.0,0.00037499,15]
[341005936,1730235039929,-157.0,0.000375,5]
[341005938,1730235039938,-8893.25201978,0.000375,2]
[341005940,1730235039948,-62718.16666447,0.000375,2]
[341005942,1730235039958,-89052.54798342,0.000375,30]
[341005962,1730235040667,-588393.98991457,0.000375,30]
[341005963,1730235041129,-203.1720082,0.000374,2]
[341005964,1730235041146,-190.09502789,0.000375,30]
[341005965,1730235041165,-1804.8236609,0.000375,30]
[341005973,1730235043588,-373.27179768,0.000375,30]
[341005974,1730235043619,-106.97280192,0.000375,30]
[341005975,1730235043630,-2895.24,0.000375,30]
[341005976,1730235043702,-938.8429787,0.000375,30]
[341006009,1730235044105,270.59414124,0.00017605,2]
[341006116,1730235046660,-178.8,0.00037367,2]
[341006117,1730235046670,-150.0,0.00037432,2]
[341006118,1730235046680,-150.0,0.00037438,2]
[341006119,1730235046690,-71531.17699999,0.000375,30]
[341006120,1730235046711,-635454.93885097,0.000375,30]
[341010313,1730235459973,157.8,0.00015342,2]
[341010314,1730235511912,6000.0,0.0002,7]
[341010319,1730235914568,550.0,0.00015,2]
[341010320,1730235950166,-321.47653938,0.0003,2]
[341010321,1730236035084,-95.92346062,0.0003,2]
[341010322,1730236035105,-464.84,0.00034511,2]
[341010323,1730236035127,-304.73,0.00036251,2]
[341010324,1730236035149,-150.0,0.00036297,7]
[341010325,1730236035171,-177.67,0.00036305,120]
[341010326,1730236035191,-176.46,0.00036305,2]
[341010327,1730236035211,-640.0,0.00036361,2]
[341010328,1730236035230,-612.5,0.00036477,2]
[341010329,1730236035250,-158.7,0.00036481,120]
[341010330,1730236035271,-250.0,0.00036539,120]
[341010331,1730236035292,-360.0,0.00036609,2]
[341010332,1730236035313,-464.84,0.00036775,2]
[341010333,1730236035333,-200.0,0.00037181,2]
[341010334,1730236035355,-200.0,0.00037251,2]
[341010335,1730236035375,-6481.13069294,0.00037251,2]
[341010343,1730236231459,-418.35,0.0003466,2]
[341010344,1730236231468,-250.0,0.00036565,120]
[341010346,1730236231477,-418.35,0.00036924,2]
[341010348,1730236231486,-4686.94230706,0.00037251,2]
[341010350,1730236231496,-8433.30737532,0.00037251,2]
[341010353,1730236231517,-15286.42474312,0.00037251,2]
[341010354,1730236231527,-1580.49409564,0.00037251,2]
[341010355,1730236231541,-1356.19569135,0.00037251,2]
[341010356,1730236231552,-160.82449457,0.00037251,2]
[341010357,1730236231561,-2290.70862421,0.00037251,2]
[341010358,1730236231572,-1257.46454135,0.00037251,2]
[341010359,1730236231582,-1182.71091713,0.00037251,2]
[341010360,1730236231604,-1402.09414124,0.00037251,2]
[341010361,1730236231614,-3040.13081235,0.00037251,2]
[341010362,1730236231625,-665.38350075,0.00037251,2]
[341010363,1730236231636,-1181.10260176,0.00037251,2]
[341010364,1730236231647,-1157.53293378,0.00037251,2]
[341010365,1730236231658,-454.92529219,0.00037251,2]
[341010366,1730236231669,-361.36554768,0.00037251,2]
[341010367,1730236231693,-558.31365254,0.00037251,2]
[341010368,1730236231703,-696.15651,0.00037251,2]
[341010369,1730236231714,-19309.17522502,0.00037251,2]
[341010370,1730236231723,-1000.0,0.00037251,2]
[341010371,1730236231732,-882.39,0.00037251,47]
[341010372,1730236231741,-150.0,0.00037283,2]
[341010373,1730236231750,-200.0,0.00037297,2]
[341010374,1730236231759,-3505.2898,0.000374,2]
[341010375,1730236231768,-3896.14497498,0.000374,2]
[341010376,1730236231779,-4064.67310528,0.000374,2]
[341010377,1730236231790,-1253.44751974,0.000374,2]
[341010378,1730236231799,-73.28273,0.000374,2]
[341010379,1730236231810,-97.71360184,0.000374,2]
[341010381,1730236231819,-162.40053894,0.000374,2]
[341010383,1730236231827,-182.3458634,0.000374,2]
[341010385,1730236231836,-654.27776078,0.000374,2]
[341010387,1730236231848,-1218.65725434,0.000374,2]
[341010389,1730236231857,-19.38274566,0.000374,2]
[341010391,1730236231871,-949.16738486,0.000374,2]
[341010393,1730236231880,-298.69261514,0.000374,2]
[341010461,1730236237546,-277.7574812,0.000374,2]
[341010462,1730236237555,-139.44469094,0.000374,2]
[341010463,1730236237567,-63.72731724,0.000374,2]
[341010464,1730236237576,-385.44480947,0.000374,2]
[341010465,1730236237587,-930.51620209,0.000374,2]
[341010466,1730236237599,-5808.32989986,0.000374,2]
[341010467,1730236237610,-586.1799998,0.000374,2]
[341010468,1730236237625,-13.16426474,0.000374,2]
[341010469,1730236237634,-2824.32655856,0.000374,15]
[341010470,1730236237711,-11.60596575,0.000374,15]
[341010471,1730236237721,-1655.59770362,0.00037456,15]
[341010472,1730236237768,-1180.33482069,0.00037456,15]
[341010473,1730236237777,-182.34586333,0.00037471,2]
[341010474,1730236237786,-402.10352557,0.00037473,5]
[341010475,1730236237795,-336.14369922,0.00037499,2]
[341010482,1730236239858,-1192.97712817,0.00037499,2]
[341010483,1730236239886,-157.77829054,0.00037499,2]
[341010484,1730236239896,-500.0,0.00037499,15]
[341010485,1730236239905,-165.01529094,0.00037499,15]
[341010486,1730236239914,-224.36641851,0.000375,2]
[341010594,1730236245652,-7779.56039929,0.000375,2]
[341010595,1730236245662,-87371.92014768,0.000375,2]
[341010596,1730236245673,-61911.18682975,0.000375,30]
[341010601,1730236586129,157.21,0.00015342,2]
[341010606,1730237078846,150.0,0.000215,2]
[341010607,1730237108162,1440.0,0.00016,2]
[341010608,1730237108187,2605.738,0.00016,2]
[341010609,1730237108216,152415.11849273,0.00016,2]
[341010610,1730237151205,-157.21,0.00030548,2]
[341010611,1730237151226,-709.0,0.000331,3]
[341010612,1730237151247,-81.63604433,0.00034494,2]
[341010614,1730237244423,315.9698375,0.0002,5]
[341010616,1730237310146,86963.33378337,0.0002,2]
[341010617,1730237315541,551.91157555,0.00015235,2]
[341010624,1730237347148,-7531.77502768,0.000232,2]
[341010638,1730237431763,-398.93,0.00034461,2]
[341010639,1730237431772,-291.31,0.00036201,2]
[341010640,1730237431782,-500.0,0.00036201,2]
[341010641,1730237431791,-167.73,0.00036234,2]
[341010642,1730237431800,-152.36,0.00036244,2]
[341010643,1730237431809,-155.37,0.00036255,2]
[341010644,1730237431818,-820.91,0.00036255,2]
[341010645,1730237431827,-526.39,0.00036255,2]
[341010646,1730237431836,-176.46,0.00036314,2]
[341010647,1730237431846,-150.0,0.00036329,7]
[341010648,1730237431975,-242.48280001,0.00036725,2]
[341010649,1730237431997,-156.44719999,0.00036725,2]
[341010650,1730237432006,-882.70253623,0.00036754,2]
[341010653,1730237432033,-1193.8058045,0.00036754,2]
[341010655,1730237432044,-427.53,0.00036754,2]
[341010657,1730237432055,-10871.96165927,0.00036754,2]
[341010659,1730237432063,-300.0,0.00036985,2]
[341010661,1730237432072,-808.69,0.00036986,2]
[341010663,1730237432082,-153.74,0.00036986,2]
[341010664,1730237432091,-342.68,0.00036986,2]
[341010666,1730237432100,-150.0,0.00036986,2]
[341010667,1730237432110,-150.0,0.00036986,2]
[341010668,1730237432119,-160.9,0.00036986,2]
[341010669,1730237432128,-150.0,0.00036986,2]
[341010670,1730237432137,-360.65,0.00036986,2]
[341010671,1730237432146,-360.65,0.00036986,2]
[341010672,1730237432155,-150.0,0.00036986,2]
[341010673,1730237432164,-360.65,0.00036986,2]
[341010674,1730237432174,-360.65,0.00036986,2]
[341010675,1730237432183,-150.0,0.00036986,2]
[341010676,1730237432192,-544.86,0.00036986,2]
[341010677,1730237432201,-2697.13536587,0.0003713,2]
[341010678,1730237432213,-5950.08139007,0.0003713,2]
[341010679,1730237432222,-424.6858336,0.0003716,2]
[341010680,1730237432231,-152.0,0.00037342,3]
[341010681,1730237432240,-593.1711,0.000374,2]
[341010682,1730237432249,-4937.3307,0.000374,2]
[341010683,1730237432259,-262.6551,0.000374,2]
[341010684,1730237432268,-1011.4567,0.000374,2]
[341010685,1730237432277,-170.34675248,0.000374,2]
[341010686,1730237432286,-166.19911231,0.000374,2]
[341010687,1730237432295,-4973.5355,0.000374,2]
[341010688,1730237432304,-2268.74601952,0.000374,15]
[341010689,1730237432314,-1248.62334342,0.000374,2]
[341010690,1730237432323,-645.70008702,0.000374,2]
[341010691,1730237432332,-538.4124127,0.000374,2]
[341010692,1730237432341,-2268.74601944,0.00037456,15]
[341010693,1730237432351,-500.0,0.00037473,2]
[341010694,1730237432360,-812.34,0.0003749,3]
[341010695,1730237432369,-1405.74926495,0.00037499,2]
[341010696,1730237432379,-500.0,0.00037499,15]
[341010697,1730237432388,-500.0,0.00037499,15]
[341010698,1730237432397,-500.0,0.00037499,15]
[341010699,1730237432406,-500.0,0.00037499,15]
[341010700,1730237432415,-623.4200796,0.00037499,15]
[341010701,1730237432424,-500.0,0.00037499,15]
[341010702,1730237432433,-500.0,0.00037499,15]
[341010703,1730237432442,-500.0,0.00037499,15]
[341010704,1730237432451,-500.0,0.00037499,15]
[341010705,1730237432460,-205.80780104,0.00037499,15]
[341010706,1730237432470,-500.0,0.00037499,15]
[341010707,1730237432479,-500.0,0.00037499,15]
[341010708,1730237432488,-500.0,0.00037499,15]
[341010709,1730237432497,-500.0,0.00037499,15]
[341010710,1730237432506,-500.0,0.00037499,15]
[341010711,1730237432516,-500.0,0.00037499,15]
[341010712,1730237432525,-500.0,0.00037499,15]
[341010713,1730237432534,-151.2006227,0.00037499,15]
[341010714,1730237432543,-500.0,0.00037499,15]
[341010715,1730237432556,-500.0,0.00037499,15]
[341010716,1730237432566,-350.0,0.00037499,15]
[341010717,1730237432575,-7203.53413602,0.000375,2]
[341010718,1730237432585,-254465.41099108,0.000375,30]
[341010719,1730237432597,-478.59396333,0.000375,30]
[341010720,1730237432608,-2331.32555382,0.000375,30]
[341010721,1730237432619,-13378.52179664,0.000375,30]
[341010722,1730237432651,-137.05855216,0.000375,30]
[341010725,1730237437697,-678.85208531,0.000375,2]
[341010726,1730237437708,-301.11415239,0.000375,2]
[341010727,1730237437760,-697.426834,0.000375,2]
[341010728,1730237437771,-15258.55234642,0.000375,2]
[341010729,1730237437782,-250.0,0.000375,2]
[341010730,1730237437793,-2212.02777319,0.000375,2]
[341010731,1730237437822,-1171.97606687,0.000375,2]
[341010732,1730237437885,-3409.98107698,0.000375,2]
[341010733,1730237437897,-12635.0,0.000375,2]
[341010734,1730237437908,-1950.22179888,0.000375,2]
[341010735,1730237437920,-15695.17980472,0.000375,2]
[341010736,1730237437953,-2548.50489492,0.000375,2]
[341010737,1730237438070,-1336.04561394,0.000375,2]
[341010741,1730237439826,-332.63776424,0.000375,2]
[341010742,1730237439890,-2537.886688,0.000375,2]
[341010743,1730237440006,-31104.31928005,0.000375,2]
[341010744,1730237440017,-87803.25364912,0.000375,30]
[341010745,1730237440029,-50542.317336,0.000375,30]
[341010746,1730237440041,-440.95571903,0.000375,30]
[341010747,1730237440053,-345.34233877,0.000375,30]
[341010764,1730237442833,-306.0,0.00037499,2]
[341010765,1730237442951,-865.45772079,0.00037499,2]
[341010766,1730237442961,-25790.29856759,0.000375,30]
[341010767,1730237443026,-59728.19579362,0.000375,30]
[341010768,1730237443050,-3771.32302456,0.000375,30]
[341010769,1730237443061,-1626.65305169,0.000375,30]
[341010788,1730237614401,157.1,0.00015342,2]
[341010792,1730238158551,159.66,0.00015342,2]
[341010793,1730238161079,168.542,0.00019504,2]
[341010797,1730238330138,-159.66,0.00027507,2]
[341010798,1730238330158,-168.542,0.00029864,2]
[341010799,1730238330178,-563.67475,0.0003,2]
[341010800,1730238330198,-563.67475,0.00031809,2]
[341010801,1730238330218,-437.43760444,0.00033,3]
[341010803,1730238454089,-171.80669325,0.00032835,15]
[341010804,1730238454110,-371.56239556,0.00033,3]
[341010805,1730238454131,-260.0,0.00033,3]
[341010806,1730238454152,-391.03,0.00033769,2]
[341010807,1730238454173,-41218.06,0.00035361,2]
[341010808,1730238454193,-1424.76608358,0.00035488,2]
[341010809,1730238454215,-250.0,0.00035488,120]
[341010810,1730238454236,-150.0,0.00035558,2]
[341010811,1730238454256,-152.36,0.00035669,2]
[341010812,1730238454276,-800.76,0.00035669,2]
[341010813,1730238454297,-150.0,0.00035718,7]
[341010814,1730238454316,-1760.57,0.00035844,2]
[341010815,1730238454337,-523.536791,0.00035932,2]
[341010816,1730238454358,-1871.04955906,0.00035932,15]
[341010817,1730238454378,-295.87687955,0.0003599,2]
[341010818,1730238454400,-500.0,0.00035999,15]
[341010819,1730238454422,-500.0,0.00035999,15]
[341010820,1730238454443,-500.0,0.00035999,15]
[341010821,1730238454465,-500.0,0.00035999,15]
[341010822,1730238454486,-500.0,0.00035999,15]
[341010823,1730238454507,-500.0,0.00035999,15]
[341010824,1730238454527,-500.0,0.00035999,15]
[341010825,1730238454550,-500.0,0.00035999,15]
[341010826,1730238454571,-395.08975567,0.00035999,15]
[341010827,1730238454594,-411.90741769,0.00035999,15]
[341010828,1730238454616,-500.0,0.00035999,15]
[341010829,1730238454639,-500.0,0.00035999,15]
[341010830,1730238454661,-588.33519239,0.00035999,15]
[341010831,1730238454682,-23193.13408941,0.00036,2]
[341010832,1730238498773,270.59414124,0.00017605,2]
[341010833,1730238546110,-155.0,0.0003335,2]
[341010834,1730238558913,155.0,0.0003335,2]
[341010840,1730238631862,-1000.0,0.00035928,2]
[341010841,1730238631873,-156.2964543,0.00035932,2]
[341010842,1730238631882,-5323.06321812,0.00036,2]
[341010843,1730238631922,-48118.584724,0.00036,2]
[341010844,1730238631934,-3078.55932045,0.00036,2]
[341010845,1730238631950,-4561.03206032,0.00036,2]
[341010846,1730238631983,-2228.24459346,0.00036,2]
[341010847,1730238631996,-2806.916565,0.00036,2]
[341010848,1730238632046,-4394.02759438,0.00036,2]
[341010849,1730238632057,-450.037073,0.00036,2]
[341010850,1730238632068,-48963.21587229,0.00036,2]
[341010851,1730238632112,-466.42930039,0.00036,2]
[341010852,1730238632123,-140009.94737064,0.00036,2]
[341010853,1730238632173,-9110.77520033,0.00036,2]
[341010869,1730238638238,-8819.98276171,0.00036,2]
[341010900,1730238642905,-505.967,0.00036,2]
[341010907,1730238646015,-250.0,0.00036,2]
[341010908,1730238646180,-5813.02014149,0.00036,2]
[341010909,1730238646192,-49796.32385957,0.00036,2]
[341010914,1730238686974,158.42,0.00015342,2]
[341010921,1730239356995,157.21,0.00015342,2]
[341010922,1730239557138,-400.91,0.00033332,2]
[341010923,1730239557161,-250.0,0.00035146,120]
[341010924,1730239557180,-168.02,0.00035152,2]
[341010925,1730239557200,-164.5,0.00035166,2]
[341010926,1730239557220,-200.0,0.00035166,2]
[341010927,1730239557239,-2423.2,0.00035182,2]
[341010928,1730239557262,-161.06,0.00035193,2]
[341010929,1730239557282,-150.0,0.00035311,7]
[341010930,1730239557302,-167.1,0.00035317,2]
[341010931,1730239557322,-164.65,0.00035335,120]
[341010932,1730239557343,-313.514,0.00035415,2]
[341010933,1730239557361,-1087.0,0.00035415,2]
[341010934,1730239557380,-150.99,0.00035482,2]
[341010935,1730239557402,-705.912,0.00035547,42]
[341010936,1730239557422,-400.91,0.00035595,2]
[341010937,1730239557443,-157.21,0.00035616,2]
[341010938,1730239557462,-810.68979866,0.0003565,2]
[341010948,1730239832126,-821.229624,0.00034912,2]
[341010951,1730239832137,-8563.92306016,0.00034912,2]
[341010952,1730239832148,-915.94,0.00034912,2]
[341010995,1730239838141,-3699.92785534,0.00034912,2]
[341010996,1730239838238,-1562.92844443,0.00034912,2]
[341011079,1730239840156,-3185.65302144,0.00034912,2]
[341011080,1730239840182,-1244.09212786,0.00034912,2]
[341011081,1730239840193,-1362.7092578,0.00034912,2]
[341011082,1730239840205,-315.3343428,0.00034912,2]
[341011083,1730239840230,-449.17496549,0.00034912,2]
[341011084,1730239840332,-334.39,0.00034912,2]
[341011085,1730239840344,-319.196952,0.00034912,2]
[341011086,1730239840357,-7656.2466167,0.00034912,2]
[341011087,1730239840370,-3279.94079203,0.00034912,2]
[341011088,1730239840433,-129.41293995,0.00034912,2]
[341011089,1730239840443,-161.06,0.00035644,2]
[341011090,1730239840453,-4750.13183546,0.0003565,2]
[341011091,1730239840463,-800.0,0.0003583,2]
[341011092,1730239840472,-2616.57621044,0.000359,15]
[341011093,1730239840482,-190.19,0.00035943,2]
[341011094,1730239840491,-279.43,0.00035943,10]
[341011095,1730239840500,-798.49,0.00035943,2]
[341011096,1730239840511,-262697.73925544,0.00036,2]
[341011097,1730239840521,-598.4183036,0.00036,37]
[341011098,1730239840531,-2616.57621041,0.00036067,15]
[341011099,1730239840540,-2616.57621041,0.00036233,15]
[341011100,1730239840550,-166.07,0.00036306,2]
[341011101,1730239840559,-2616.57621041,0.000364,15]
[341011102,1730239840569,-2616.57621041,0.00036567,15]
[341011103,1730239840578,-151.1,0.00036634,2]
[341011104,1730239840587,-151.1,0.00036725,2]
[341011105,1730239840596,-2616.57621041,0.00036733,15]
[341011106,1730239840606,-151.1,0.00036817,2]
[341011107,1730239840616,-2616.57621041,0.000369,15]
[341011108,1730239840626,-400.0,0.000369,13]
[341011109,1730239840635,-150.0,0.00036986,2]
[341011110,1730239840645,-150.0,0.00036986,2]
[341011111,1730239840654,-150.0,0.00036986,2]
[341011112,1730239840664,-900.0,0.00037,38]
[341011113,1730239840673,-2616.57621041,0.00037067,15]
[341011114,1730239840683,-900.0,0.000371,13]
[341011115,1730239840801,-488.63433822,0.00037136,2]
[341011116,1730239840812,-1300.0,0.000372,13]
[341011117,1730239840821,-649.44655315,0.00037207,11]
[341011118,1730239840831,-5822.05420964,0.00037208,2]
[341011119,1730239840840,-5822.05420964,0.00037208,2]
[341011120,1730239840850,-9724.77108364,0.00037212,2]
[341011121,1730239840859,-75349.81696617,0.00037212,2]
[341011122,1730239841381,-52784.25429013,0.00037212,2]
[341011123,1730239841399,-396.12301239,0.00037212,2]
[341011129,1730239844041,-875.07328754,0.00037212,2]
[341011130,1730239844209,-788.14314,0.00037212,2]
[341011131,1730239846243,-53596.13182172,0.00037212,2]
[341011132,1730239846305,-574.21013254,0.00037212,2]
[341011133,1730239846390,-506.315344,0.00037212,2]
[341011134,1730239846455,-761.78767428,0.00037212,2]
[341011135,1730239846467,-28797.24122439,0.00037212,2]
[341011136,1730239846477,-1993.8051754,0.00037212,30]
[341011137,1730239846487,-34801.02885713,0.00037215,2]
[341011138,1730239846496,-252.36305396,0.00037226,2]
[341011139,1730239846506,-5822.05420964,0.00037232,2]
[341011140,1730239846515,-2616.57621041,0.00037233,15]
[341011141,1730239846525,-34801.02885713,0.00037236,2]
[341011142,1730239846535,-5822.05420964,0.00037278,2]
[341011143,1730239846544,-151.0,0.000373,7]
[341011144,1730239846553,-151.0,0.000373,7]
[341011145,1730239846563,-151.0,0.000373,7]
[341011146,1730239846572,-152.404133,0.000373,7]
[341011147,1730239846582,-151.0,0.000373,7]
[341011148,1730239846591,-151.0,0.000373,7]
[341011149,1730239846601,-151.0,0.000373,7]
[341011150,1730239846610,-151.0,0.000373,7]
[341011151,1730239846619,-151.0,0.000373,7]
[341011152,1730239846629,-154.053892,0.000373,7]
[341011153,1730239846639,-151.0,0.000373,7]
[341011154,1730239846648,-151.0,0.000373,7]
[341011155,1730239846657,-151.0,0.000373,7]
[341011156,1730239846666,-151.0,0.000373,7]
[341011157,1730239846675,-151.0,0.000373,7]
[341011158,1730239846684,-151.0,0.000373,7]
[341011159,1730239846693,-151.0,0.000373,7]
[341011160,1730239846702,-1800.0,0.000373,13]
[341011161,1730239846711,-5822.05420964,0.00037301,2]
[341011162,1730239846721,-649.44655315,0.00037304,12]